[Event "Titled Tuesday Blitz January 11 2022"]
[White "Gurevich, Dmitry"]
[Black "Pakleza, Zbigniew"]
[WhiteFideId "2000407"]
[BlackFideId "1119290"]
[WhiteElo "2506"]
[BlackElo "2467"]
[Result "1-0"]
[Round "10"]
[TimeControl "180+1"]
[Date "2022.01.11"]
[WhiteClock "0:00:06"]
[BlackClock "0:00:08"]

1. d4 {[%clk 0:02:47]}  d6 {[%clk 0:03:00]} 2. Nf3 {[%clk 0:02:46]}  Bg4 {[%clk 0:02:58]} 3. g3 {[%clk 0:02:45]}  Bxf3 {[%clk 0:02:57]} 4. exf3 {[%clk 0:02:45]}  e6 {[%clk 0:02:58]} 5. c4 {[%clk 0:02:45]}  c6 {[%clk 0:02:54]} 6. f4 {[%clk 0:02:44]}  Ne7 {[%clk 0:02:51]} 7. Bg2 {[%clk 0:02:40]}  d5 {[%clk 0:02:50]} 8. Nd2 {[%clk 0:02:26]}  g6 {[%clk 0:02:48]} 9. c5 {[%clk 0:02:18]}  Bg7 {[%clk 0:02:47]} 10. Nb3 {[%clk 0:02:15]}  Nd7 {[%clk 0:02:42]} 11. O-O {[%clk 0:02:13]}  O-O {[%clk 0:02:40]} 12. h4 {[%clk 0:02:12]}  h5 {[%clk 0:02:39]} 13. Re1 {[%clk 0:02:10]}  b6 {[%clk 0:02:35]} 14. Qc2 {[%clk 0:02:05]}  Nf5 {[%clk 0:02:14]} 15. Rd1 {[%clk 0:02:02]}  a5 {[%clk 0:01:55]} 16. a4 {[%clk 0:02:00]}  bxc5 {[%clk 0:01:55]} 17. dxc5 {[%clk 0:01:57]}  Qc7 {[%clk 0:01:40]} 18. Bh3 {[%clk 0:01:51]}  Rfb8 {[%clk 0:01:35]} 19. Bxf5 {[%clk 0:01:50]}  exf5 {[%clk 0:01:36]} 20. Bd2 {[%clk 0:01:47]}  Nf6 {[%clk 0:01:15]} 21. Bc3 {[%clk 0:01:45]}  Ne4 {[%clk 0:01:12]} 22. Bxg7 {[%clk 0:01:44]}  Kxg7 {[%clk 0:01:13]} 23. Kg2 {[%clk 0:01:42]}  Qe7 {[%clk 0:01:07]} 24. Rdc1 {[%clk 0:01:34]}  Rb4 {[%clk 0:01:02]} 25. Nd2 {[%clk 0:01:23]}  Rab8 {[%clk 0:00:51]} 26. Ra2 {[%clk 0:01:18]}  Qf6 {[%clk 0:00:39]} 27. Rb1 {[%clk 0:01:03]}  Qd4 {[%clk 0:00:34]} 28. Nf3 {[%clk 0:00:55]}  Qc4 {[%clk 0:00:16]} 29. b3 {[%clk 0:00:46]}  Qa6 {[%clk 0:00:11]} 30. Ne5 {[%clk 0:00:42]}  f6 {[%clk 0:00:09]} 31. Nd3 {[%clk 0:00:33]}  Rd4 {[%clk 0:00:10]} 32. Rd1 {[%clk 0:00:29]}  Re8 {[%clk 0:00:10]} 33. f3 {[%clk 0:00:24]}  Rxd3 {[%clk 0:00:08]} 34. Qxd3 {[%clk 0:00:20]}  Qxd3 {[%clk 0:00:08]} 35. Rxd3 {[%clk 0:00:19]}  Nxc5 {[%clk 0:00:09]} 36. Rc3 {[%clk 0:00:19]}  Na6 {[%clk 0:00:06]} 37. Rxc6 {[%clk 0:00:16]}  Nb4 {[%clk 0:00:07]} 38. Rac2 {[%clk 0:00:15]}  Kh6 {[%clk 0:00:08]} 39. Rc8 {[%clk 0:00:14]}  Rxc8 {[%clk 0:00:04]} 40. Rxc8 {[%clk 0:00:14]}  d4 {[%clk 0:00:05]} 41. Kf2 {[%clk 0:00:13]}  d3 {[%clk 0:00:05]} 42. Ke3 {[%clk 0:00:13]}  g5 {[%clk 0:00:05]} 43. Rd8 {[%clk 0:00:11]}  Kg6 {[%clk 0:00:04]} 44. Rxd3 {[%clk 0:00:10]}  Nc2+ {[%clk 0:00:05]} 45. Kd2 {[%clk 0:00:09]}  Nb4 {[%clk 0:00:06]} 46. Rd4 {[%clk 0:00:09]}  gxh4 {[%clk 0:00:07]} 47. gxh4 {[%clk 0:00:09]}  Nc6 {[%clk 0:00:08]} 48. Kd3 {[%clk 0:00:08]}  Kf7 {[%clk 0:00:06]} 49. Rd6 {[%clk 0:00:07]}  Nb4+ {[%clk 0:00:06]} 50. Kc3 {[%clk 0:00:07]}  Na2+ {[%clk 0:00:07]} 51. Kc4 {[%clk 0:00:07]}  Nc1 {[%clk 0:00:07]} 52. Rd2 {[%clk 0:00:06]}  Ne2 {[%clk 0:00:08]} 53. Rxe2 {[%clk 0:00:06]} 1-0


[Site "https://www.chess.com"]

[Event "Titled Tuesday Blitz January 11 2022"]
[White "Howell, David W L"]
[Black "Ibrahimli, Murad"]
[WhiteFideId "410608"]
[BlackFideId "13410229"]
[WhiteElo "2559"]
[BlackElo "2109"]
[Result "1-0"]
[Round "10"]
[TimeControl "180+1"]
[Date "2022.01.11"]
[WhiteClock "0:00:44"]
[BlackClock "0:00:03"]

1. d4 {[%clk 0:02:58]}  Nf6 {[%clk 0:03:00]} 2. c4 {[%clk 0:02:57]}  e6 {[%clk 0:03:00]} 3. Nc3 {[%clk 0:02:58]}  Bb4 {[%clk 0:03:00]} 4. Nf3 {[%clk 0:02:58]}  O-O {[%clk 0:02:58]} 5. g3 {[%clk 0:02:55]}  c5 {[%clk 0:02:54]} 6. Bg2 {[%clk 0:02:54]}  Nc6 {[%clk 0:02:53]} 7. O-O {[%clk 0:02:53]}  cxd4 {[%clk 0:02:39]} 8. Nxd4 {[%clk 0:02:54]}  a6 {[%clk 0:02:39]} 9. Bf4 {[%clk 0:02:47]}  Na5 {[%clk 0:02:30]} 10. Qd3 {[%clk 0:02:44]}  Be7 {[%clk 0:01:54]} 11. Rfd1 {[%clk 0:02:39]}  h6 {[%clk 0:01:54]} 12. Nb3 {[%clk 0:02:36]}  Nc6 {[%clk 0:01:44]} 13. Bd6 {[%clk 0:02:33]}  Re8 {[%clk 0:01:40]} 14. c5 {[%clk 0:02:21]}  b6 {[%clk 0:01:27]} 15. Bxe7 {[%clk 0:02:20]}  Qxe7 {[%clk 0:01:22]} 16. cxb6 {[%clk 0:02:19]}  Qb4 {[%clk 0:01:23]} 17. Bxc6 {[%clk 0:02:12]}  dxc6 {[%clk 0:01:24]} 18. Qd4 {[%clk 0:02:12]}  c5 {[%clk 0:01:15]} 19. Qxc5 {[%clk 0:02:10]}  Qg4 {[%clk 0:01:14]} 20. f3 {[%clk 0:02:05]}  Qh3 {[%clk 0:01:14]} 21. Qc6 {[%clk 0:01:59]}  Rb8 {[%clk 0:01:13]} 22. Nc5 {[%clk 0:01:58]}  e5 {[%clk 0:00:58]} 23. b7 {[%clk 0:01:57]}  Bxb7 {[%clk 0:00:58]} 24. Nxb7 {[%clk 0:01:58]}  e4 {[%clk 0:00:59]} 25. Rd2 {[%clk 0:01:42]}  e3 {[%clk 0:00:43]} 26. Rd4 {[%clk 0:01:38]}  Re5 {[%clk 0:00:43]} 27. Rh4 {[%clk 0:01:36]}  Qf5 {[%clk 0:00:43]} 28. Rd1 {[%clk 0:01:32]}  Qc2 {[%clk 0:00:43]} 29. Rhd4 {[%clk 0:01:28]}  Qxb2 {[%clk 0:00:42]} 30. Rd8+ {[%clk 0:01:27]}  Rxd8 {[%clk 0:00:42]} 31. Rxd8+ {[%clk 0:01:28]}  Kh7 {[%clk 0:00:43]} 32. Rd1 {[%clk 0:01:19]}  Qc2 {[%clk 0:00:16]} 33. Nd6 {[%clk 0:01:10]}  Ra5 {[%clk 0:00:14]} 34. Nde4 {[%clk 0:01:07]}  Nh5 {[%clk 0:00:11]} 35. Qc7 {[%clk 0:00:52]}  Rf5 {[%clk 0:00:07]} 36. Qc4 {[%clk 0:00:44]}  Re5 {[%clk 0:00:03]} 37. Qd3 {[%clk 0:00:44]} 1-0


[Site "https://www.chess.com"]

[Event "Titled Tuesday Blitz January 11 2022"]
[White "Janaszak, Dawid"]
[Black "Piorun, Kacper"]
[WhiteFideId "1119206"]
[BlackFideId "1130420"]
[WhiteElo "2199"]
[BlackElo "2571"]
[Result "1/2-1/2"]
[Round "10"]
[TimeControl "180+1"]
[Date "2022.01.11"]
[WhiteClock "0:00:05"]
[BlackClock "0:00:07"]

1. e4 {[%clk 0:03:00]}  Nf6 {[%clk 0:02:59]} 2. e5 {[%clk 0:03:00]}  Nd5 {[%clk 0:02:59]} 3. d4 {[%clk 0:03:00]}  d6 {[%clk 0:03:00]} 4. Nf3 {[%clk 0:03:01]}  dxe5 {[%clk 0:03:01]} 5. Nxe5 {[%clk 0:03:00]}  c6 {[%clk 0:03:00]} 6. Be2 {[%clk 0:02:46]}  g6 {[%clk 0:03:00]} 7. O-O {[%clk 0:02:46]}  Bg7 {[%clk 0:03:01]} 8. Bf3 {[%clk 0:02:30]}  O-O {[%clk 0:03:00]} 9. Re1 {[%clk 0:02:29]}  Nd7 {[%clk 0:02:58]} 10. Qe2 {[%clk 0:02:20]}  Nxe5 {[%clk 0:02:50]} 11. dxe5 {[%clk 0:02:21]}  Bf5 {[%clk 0:02:50]} 12. Be4 {[%clk 0:01:59]}  Qd7 {[%clk 0:02:43]} 13. c3 {[%clk 0:01:46]}  Rad8 {[%clk 0:02:37]} 14. Na3 {[%clk 0:01:37]}  Qe6 {[%clk 0:02:17]} 15. Bxf5 {[%clk 0:01:29]}  Qxf5 {[%clk 0:02:15]} 16. Nc4 {[%clk 0:01:24]}  Rd7 {[%clk 0:01:57]} 17. a4 {[%clk 0:01:09]}  Rfd8 {[%clk 0:01:56]} 18. g3 {[%clk 0:01:05]}  h5 {[%clk 0:01:53]} 19. h4 {[%clk 0:01:03]}  Nc7 {[%clk 0:01:50]} 20. Be3 {[%clk 0:00:59]}  b6 {[%clk 0:01:47]} 21. Rad1 {[%clk 0:00:42]}  Ne6 {[%clk 0:01:35]} 22. Rxd7 {[%clk 0:00:40]}  Rxd7 {[%clk 0:01:36]} 23. f4 {[%clk 0:00:33]}  b5 {[%clk 0:01:06]} 24. axb5 {[%clk 0:00:31]}  cxb5 {[%clk 0:01:06]} 25. Nd2 {[%clk 0:00:27]}  Qc2 {[%clk 0:01:04]} 26. Nf3 {[%clk 0:00:24]}  Qb3 {[%clk 0:01:01]} 27. Nd4 {[%clk 0:00:23]}  Nxd4 {[%clk 0:01:01]} 28. Bxd4 {[%clk 0:00:24]}  e6 {[%clk 0:01:01]} 29. Ra1 {[%clk 0:00:21]}  b4 {[%clk 0:00:51]} 30. Rxa7 {[%clk 0:00:18]}  Rxd4 {[%clk 0:00:21]} 31. cxd4 {[%clk 0:00:14]}  Qxg3+ {[%clk 0:00:21]} 32. Qg2 {[%clk 0:00:12]}  Qxf4 {[%clk 0:00:20]} 33. Qf2 {[%clk 0:00:11]}  Qg4+ {[%clk 0:00:19]} 34. Kh2 {[%clk 0:00:09]}  Kh8 {[%clk 0:00:17]} 35. Qxf7 {[%clk 0:00:09]}  Qxh4+ {[%clk 0:00:14]} 36. Kg2 {[%clk 0:00:09]}  Qe4+ {[%clk 0:00:13]} 37. Kf1 {[%clk 0:00:07]}  Qd3+ {[%clk 0:00:11]} 38. Kg2 {[%clk 0:00:06]}  Qe4+ {[%clk 0:00:11]} 39. Kf1 {[%clk 0:00:06]}  Qd3+ {[%clk 0:00:06]} 40. Kg2 {[%clk 0:00:05]}  Qe4+ {[%clk 0:00:07]} 1/2-1/2


[Site "https://www.chess.com"]

[Event "Titled Tuesday Blitz January 11 2022"]
[White "Kevlishvili, Robby"]
[Black "Andreikin, Dmitry"]
[WhiteFideId "1040634"]
[BlackFideId "4158814"]
[WhiteElo "2584"]
[BlackElo "2736"]
[Result "1/2-1/2"]
[Round "10"]
[TimeControl "180+1"]
[Date "2022.01.11"]
[WhiteClock "0:00:19"]
[BlackClock "0:00:06"]

1. e4 {[%clk 0:03:00]}  c5 {[%clk 0:02:58]} 2. Nf3 {[%clk 0:03:01]}  e6 {[%clk 0:02:58]} 3. d4 {[%clk 0:03:00]}  cxd4 {[%clk 0:02:59]} 4. Nxd4 {[%clk 0:03:00]}  Nc6 {[%clk 0:02:59]} 5. Nc3 {[%clk 0:03:01]}  a6 {[%clk 0:02:59]} 6. Nxc6 {[%clk 0:02:57]}  bxc6 {[%clk 0:03:00]} 7. Bd3 {[%clk 0:02:57]}  d5 {[%clk 0:03:00]} 8. Qe2 {[%clk 0:02:56]}  Nf6 {[%clk 0:02:59]} 9. O-O {[%clk 0:02:56]}  Be7 {[%clk 0:02:59]} 10. Bd2 {[%clk 0:02:56]}  O-O {[%clk 0:02:58]} 11. f4 {[%clk 0:02:57]}  dxe4 {[%clk 0:02:48]} 12. Nxe4 {[%clk 0:02:57]}  c5 {[%clk 0:02:47]} 13. Kh1 {[%clk 0:02:52]}  Bb7 {[%clk 0:02:46]} 14. Bc3 {[%clk 0:02:45]}  Nd5 {[%clk 0:01:39]} 15. f5 {[%clk 0:02:44]}  exf5 {[%clk 0:01:29]} 16. Rxf5 {[%clk 0:02:41]}  Nxc3 {[%clk 0:01:29]} 17. Nxc3 {[%clk 0:02:41]}  g6 {[%clk 0:01:27]} 18. Rff1 {[%clk 0:01:53]}  Bd6 {[%clk 0:01:27]} 19. Be4 {[%clk 0:01:48]}  Qh4 {[%clk 0:01:13]} 20. g3 {[%clk 0:01:34]}  Qe7 {[%clk 0:01:14]} 21. Rae1 {[%clk 0:01:23]}  Rae8 {[%clk 0:01:04]} 22. Qf3 {[%clk 0:01:15]}  Bxe4 {[%clk 0:00:55]} 23. Nxe4 {[%clk 0:01:10]}  f5 {[%clk 0:00:53]} 24. Nxd6 {[%clk 0:00:55]}  Qxd6 {[%clk 0:00:52]} 25. Rd1 {[%clk 0:00:55]}  Qe6 {[%clk 0:00:49]} 26. Rd5 {[%clk 0:00:52]}  Rd8 {[%clk 0:00:42]} 27. Rfd1 {[%clk 0:00:49]}  Rxd5 {[%clk 0:00:39]} 28. Rxd5 {[%clk 0:00:45]}  Re8 {[%clk 0:00:39]} 29. Kg2 {[%clk 0:00:31]}  Qe2+ {[%clk 0:00:36]} 30. Qf2 {[%clk 0:00:31]}  Qe4+ {[%clk 0:00:36]} 31. Qf3 {[%clk 0:00:30]}  Qxc2+ {[%clk 0:00:36]} 32. Kh3 {[%clk 0:00:30]}  Qxb2 {[%clk 0:00:27]} 33. Rxc5 {[%clk 0:00:24]}  Qxa2 {[%clk 0:00:26]} 34. Rc7 {[%clk 0:00:21]}  Qe6 {[%clk 0:00:22]} 35. Rc6 {[%clk 0:00:20]}  Qd7 {[%clk 0:00:13]} 36. Rxa6 {[%clk 0:00:20]}  f4+ {[%clk 0:00:12]} 37. Qg4 {[%clk 0:00:21]}  Qb5 {[%clk 0:00:09]} 38. Rxg6+ {[%clk 0:00:16]}  hxg6 {[%clk 0:00:05]} 39. Qxg6+ {[%clk 0:00:17]}  Kf8 {[%clk 0:00:06]} 40. Qf6+ {[%clk 0:00:17]}  Kg8 {[%clk 0:00:06]} 41. Qg6+ {[%clk 0:00:18]}  Kh8 {[%clk 0:00:06]} 42. Qh6+ {[%clk 0:00:18]}  Kg8 {[%clk 0:00:06]} 43. Qg6+ {[%clk 0:00:19]} 1/2-1/2


[Site "https://www.chess.com"]

[Event "Titled Tuesday Blitz January 11 2022"]
[White "Kosteniuk, Alexandra"]
[Black "Girya, Olga"]
[WhiteFideId "4128125"]
[BlackFideId "4195752"]
[WhiteElo "2469"]
[BlackElo "2275"]
[Result "1-0"]
[Round "10"]
[TimeControl "180+1"]
[Date "2022.01.11"]
[WhiteClock "0:00:42"]
[BlackClock "0:00:14"]

1. Nf3 {[%clk 0:03:00]}  Nf6 {[%clk 0:02:57]} 2. g3 {[%clk 0:03:00]}  e6 {[%clk 0:02:58]} 3. Bg2 {[%clk 0:02:59]}  d5 {[%clk 0:02:58]} 4. c4 {[%clk 0:02:59]}  Be7 {[%clk 0:02:57]} 5. b3 {[%clk 0:02:59]}  O-O {[%clk 0:02:56]} 6. Bb2 {[%clk 0:02:59]}  b6 {[%clk 0:02:56]} 7. O-O {[%clk 0:02:59]}  Bb7 {[%clk 0:02:56]} 8. e3 {[%clk 0:02:59]}  c5 {[%clk 0:02:55]} 9. cxd5 {[%clk 0:02:58]}  Nxd5 {[%clk 0:02:55]} 10. d4 {[%clk 0:02:56]}  Nd7 {[%clk 0:02:40]} 11. e4 {[%clk 0:02:47]}  N5f6 {[%clk 0:02:39]} 12. e5 {[%clk 0:02:48]}  Nd5 {[%clk 0:02:38]} 13. Nbd2 {[%clk 0:02:47]}  cxd4 {[%clk 0:02:33]} 14. Bxd4 {[%clk 0:02:47]}  Nc5 {[%clk 0:02:31]} 15. Nc4 {[%clk 0:02:44]}  b5 {[%clk 0:02:24]} 16. Nd6 {[%clk 0:02:36]}  Bxd6 {[%clk 0:02:22]} 17. exd6 {[%clk 0:02:37]}  Qxd6 {[%clk 0:02:22]} 18. Rc1 {[%clk 0:02:34]}  Nd7 {[%clk 0:02:09]} 19. Ng5 {[%clk 0:02:27]}  Rac8 {[%clk 0:01:52]} 20. Qd3 {[%clk 0:02:22]}  f5 {[%clk 0:01:22]} 21. Rxc8 {[%clk 0:02:06]}  Rxc8 {[%clk 0:01:20]} 22. Re1 {[%clk 0:02:00]}  Re8 {[%clk 0:01:18]} 23. Qxb5 {[%clk 0:01:52]}  Bc6 {[%clk 0:01:16]} 24. Qa5 {[%clk 0:01:49]}  h6 {[%clk 0:01:07]} 25. Nf3 {[%clk 0:01:44]}  e5 {[%clk 0:00:55]} 26. Bb2 {[%clk 0:01:43]}  Qb4 {[%clk 0:00:45]} 27. Qxb4 {[%clk 0:01:35]}  Nxb4 {[%clk 0:00:44]} 28. Rd1 {[%clk 0:01:35]}  Nxa2 {[%clk 0:00:34]} 29. Nh4 {[%clk 0:01:30]}  Bxg2 {[%clk 0:00:32]} 30. Kxg2 {[%clk 0:01:30]}  Nc5 {[%clk 0:00:27]} 31. Nxf5 {[%clk 0:01:30]}  Nb4 {[%clk 0:00:24]} 32. Ba3 {[%clk 0:01:20]}  Nbd3 {[%clk 0:00:23]} 33. Bxc5 {[%clk 0:01:17]}  Nxc5 {[%clk 0:00:23]} 34. b4 {[%clk 0:01:17]}  Ne6 {[%clk 0:00:22]} 35. Rd7 {[%clk 0:01:15]}  Rb8 {[%clk 0:00:22]} 36. Re7 {[%clk 0:01:14]}  Rb6 {[%clk 0:00:22]} 37. h4 {[%clk 0:01:05]}  Kf8 {[%clk 0:00:22]} 38. h5 {[%clk 0:01:06]}  Nd4 {[%clk 0:00:20]} 39. Rxe5 {[%clk 0:01:06]}  Rxb4 {[%clk 0:00:18]} 40. Nd6 {[%clk 0:00:58]}  Rb8 {[%clk 0:00:17]} 41. Ra5 {[%clk 0:00:54]}  Nc6 {[%clk 0:00:17]} 42. Ra6 {[%clk 0:00:54]}  Rb6 {[%clk 0:00:18]} 43. Ra4 {[%clk 0:00:50]}  Ke7 {[%clk 0:00:18]} 44. Nc8+ {[%clk 0:00:50]}  Kd7 {[%clk 0:00:13]} 45. Nxb6+ {[%clk 0:00:50]}  axb6 {[%clk 0:00:14]} 46. Rg4 {[%clk 0:00:50]}  b5 {[%clk 0:00:13]} 47. Rxg7+ {[%clk 0:00:50]}  Kd6 {[%clk 0:00:13]} 48. Rg6+ {[%clk 0:00:50]}  Kc5 {[%clk 0:00:13]} 49. Rxh6 {[%clk 0:00:50]}  b4 {[%clk 0:00:14]} 50. Re6 {[%clk 0:00:42]} 1-0


[Site "https://www.chess.com"]

[Event "Titled Tuesday Blitz January 11 2022"]
[White "Maximov, Dmitry"]
[Black "Tari, Aryan"]
[WhiteFideId "14105659"]
[BlackFideId "1510045"]
[WhiteElo "2494"]
[BlackElo "2567"]
[Result "0-1"]
[Round "10"]
[TimeControl "180+1"]
[Date "2022.01.11"]
[WhiteClock "0:00:09"]
[BlackClock "0:00:10"]

1. e4 {[%clk 0:03:00]}  c6 {[%clk 0:02:59]} 2. Nc3 {[%clk 0:03:00]}  d5 {[%clk 0:02:58]} 3. Qe2 {[%clk 0:03:01]}  d4 {[%clk 0:02:37]} 4. Nd1 {[%clk 0:03:01]}  e5 {[%clk 0:02:37]} 5. g3 {[%clk 0:03:00]}  Bd6 {[%clk 0:02:37]} 6. Bg2 {[%clk 0:03:00]}  Ne7 {[%clk 0:02:38]} 7. d3 {[%clk 0:02:57]}  c5 {[%clk 0:02:38]} 8. f4 {[%clk 0:02:53]}  Nbc6 {[%clk 0:02:35]} 9. Nf3 {[%clk 0:02:50]}  exf4 {[%clk 0:02:25]} 10. gxf4 {[%clk 0:02:47]}  Ng6 {[%clk 0:02:26]} 11. e5 {[%clk 0:02:46]}  Be7 {[%clk 0:02:22]} 12. Nf2 {[%clk 0:02:27]}  O-O {[%clk 0:02:09]} 13. O-O {[%clk 0:02:24]}  f6 {[%clk 0:02:02]} 14. e6 {[%clk 0:02:18]}  f5 {[%clk 0:01:59]} 15. Bd2 {[%clk 0:02:15]}  Bd6 {[%clk 0:01:51]} 16. Nh3 {[%clk 0:02:12]}  h6 {[%clk 0:01:50]} 17. Rae1 {[%clk 0:02:10]}  Re8 {[%clk 0:01:48]} 18. Nfg5 {[%clk 0:01:53]}  Qf6 {[%clk 0:01:35]} 19. Qh5 {[%clk 0:01:45]}  Nce7 {[%clk 0:01:19]} 20. Nf7 {[%clk 0:01:40]}  Bc7 {[%clk 0:01:11]} 21. Nhg5 {[%clk 0:01:40]}  Rb8 {[%clk 0:01:02]} 22. Re2 {[%clk 0:01:29]}  b5 {[%clk 0:01:02]} 23. Rfe1 {[%clk 0:01:15]}  Bb7 {[%clk 0:01:01]} 24. Bxb7 {[%clk 0:01:13]}  Rxb7 {[%clk 0:01:02]} 25. Rg2 {[%clk 0:01:12]}  Rb6 {[%clk 0:00:30]} 26. h4 {[%clk 0:01:04]}  c4 {[%clk 0:00:25]} 27. Ba5 {[%clk 0:00:51]}  Rc6 {[%clk 0:00:16]} 28. Bxc7 {[%clk 0:00:49]}  Rxc7 {[%clk 0:00:17]} 29. Kh2 {[%clk 0:00:25]}  cxd3 {[%clk 0:00:17]} 30. cxd3 {[%clk 0:00:25]}  Rec8 {[%clk 0:00:17]} 31. Reg1 {[%clk 0:00:21]}  Rc2 {[%clk 0:00:16]} 32. Nxh6+ {[%clk 0:00:18]}  gxh6 {[%clk 0:00:16]} 33. Nf7 {[%clk 0:00:18]}  Qg7 {[%clk 0:00:10]} 34. Nxh6+ {[%clk 0:00:18]}  Kf8 {[%clk 0:00:11]} 35. Nxf5 {[%clk 0:00:16]}  Nxf5 {[%clk 0:00:10]} 36. Qxf5+ {[%clk 0:00:15]}  Ke7 {[%clk 0:00:11]} 37. Qg5+ {[%clk 0:00:14]}  Qf6 {[%clk 0:00:09]} 38. f5 {[%clk 0:00:13]}  Nxh4 {[%clk 0:00:08]} 39. Rxc2 {[%clk 0:00:08]}  Rxc2+ {[%clk 0:00:08]} 40. Kh3 {[%clk 0:00:08]}  Rh2+ {[%clk 0:00:09]} 41. Kg4 {[%clk 0:00:07]}  Qxg5+ {[%clk 0:00:08]} 42. Kxg5 {[%clk 0:00:07]}  Nf3+ {[%clk 0:00:09]} 43. Kf4 {[%clk 0:00:08]}  Nxg1 {[%clk 0:00:09]} 44. Ke5 {[%clk 0:00:09]}  Re2+ {[%clk 0:00:09]} 45. Kd5 {[%clk 0:00:09]}  Nf3 {[%clk 0:00:10]} 0-1


[Site "https://www.chess.com"]

[Event "Titled Tuesday Blitz January 11 2022"]
[White "Moroni, Luca Jr"]
[Black "Kosakowski, Jakub"]
[WhiteFideId "865834"]
[BlackFideId "1185080"]
[WhiteElo "2573"]
[BlackElo "2476"]
[Result "1-0"]
[Round "10"]
[TimeControl "180+1"]
[Date "2022.01.11"]
[WhiteClock "0:00:06"]
[BlackClock "0:00:05"]

1. d4 {[%clk 0:03:00]}  Nf6 {[%clk 0:02:59]} 2. c4 {[%clk 0:03:00]}  e6 {[%clk 0:02:58]} 3. Nc3 {[%clk 0:03:01]}  Bb4 {[%clk 0:02:58]} 4. Nf3 {[%clk 0:03:01]}  b6 {[%clk 0:02:58]} 5. Qb3 {[%clk 0:03:01]}  Bxc3+ {[%clk 0:02:58]} 6. Qxc3 {[%clk 0:03:01]}  Bb7 {[%clk 0:02:58]} 7. b3 {[%clk 0:02:58]}  O-O {[%clk 0:02:57]} 8. e3 {[%clk 0:02:59]}  d6 {[%clk 0:02:57]} 9. Bb2 {[%clk 0:02:58]}  Nbd7 {[%clk 0:02:57]} 10. Be2 {[%clk 0:02:58]}  Re8 {[%clk 0:02:57]} 11. O-O {[%clk 0:02:58]}  a5 {[%clk 0:02:57]} 12. a3 {[%clk 0:02:58]}  Qe7 {[%clk 0:02:51]} 13. b4 {[%clk 0:02:58]}  Ne4 {[%clk 0:02:45]} 14. Qc2 {[%clk 0:02:58]}  f5 {[%clk 0:02:45]} 15. d5 {[%clk 0:02:52]}  exd5 {[%clk 0:02:32]} 16. cxd5 {[%clk 0:02:53]}  Ndf6 {[%clk 0:02:33]} 17. Nd4 {[%clk 0:02:50]}  Nxd5 {[%clk 0:02:25]} 18. Nxf5 {[%clk 0:02:32]}  Qg5 {[%clk 0:02:23]} 19. Ng3 {[%clk 0:02:17]}  Nxg3 {[%clk 0:02:13]} 20. hxg3 {[%clk 0:02:18]}  axb4 {[%clk 0:02:13]} 21. axb4 {[%clk 0:02:18]}  Rxa1 {[%clk 0:02:13]} 22. Bxa1 {[%clk 0:02:10]}  Re7 {[%clk 0:02:05]} 23. Bf3 {[%clk 0:02:02]}  Rf7 {[%clk 0:01:29]} 24. Qa4 {[%clk 0:01:42]}  h5 {[%clk 0:00:36]} 25. Qe8+ {[%clk 0:01:25]}  Rf8 {[%clk 0:00:35]} 26. Qe6+ {[%clk 0:01:25]}  Kh8 {[%clk 0:00:33]} 27. Rd1 {[%clk 0:01:06]}  Rxf3 {[%clk 0:00:26]} 28. gxf3 {[%clk 0:01:07]}  h4 {[%clk 0:00:26]} 29. Qh3 {[%clk 0:00:55]}  Nxe3 {[%clk 0:00:20]} 30. Rd4 {[%clk 0:00:20]}  Nf5 {[%clk 0:00:20]} 31. Rf4 {[%clk 0:00:20]}  Nh6 {[%clk 0:00:13]} 32. Qxh4 {[%clk 0:00:14]}  Qg6 {[%clk 0:00:14]} 33. Kh2 {[%clk 0:00:12]}  Kg8 {[%clk 0:00:12]} 34. Qd8+ {[%clk 0:00:12]}  Kh7 {[%clk 0:00:12]} 35. Qxc7 {[%clk 0:00:12]}  Bd5 {[%clk 0:00:11]} 36. Qd7 {[%clk 0:00:07]}  Qc2 {[%clk 0:00:05]} 37. Qxg7# {[%clk 0:00:06]} 1-0


[Site "https://www.chess.com"]

[Event "Titled Tuesday Blitz January 11 2022"]
[White "Moskalenko, Alexander"]
[Black "Muradli, Mahammad"]
[WhiteFideId "4155351"]
[BlackFideId "13409301"]
[WhiteElo "2515"]
[BlackElo "2645"]
[Result "1-0"]
[Round "10"]
[TimeControl "180+1"]
[Date "2022.01.11"]
[WhiteClock "0:01:39"]
[BlackClock "0:00:04"]

1. Nf3 {[%clk 0:03:00]}  c5 {[%clk 0:02:58]} 2. g3 {[%clk 0:03:01]}  Nc6 {[%clk 0:02:57]} 3. Bg2 {[%clk 0:03:02]}  g6 {[%clk 0:02:58]} 4. c4 {[%clk 0:03:02]}  Bg7 {[%clk 0:02:58]} 5. O-O {[%clk 0:03:00]}  e6 {[%clk 0:02:59]} 6. Nc3 {[%clk 0:03:00]}  Nge7 {[%clk 0:02:59]} 7. d4 {[%clk 0:03:01]}  cxd4 {[%clk 0:02:52]} 8. Nb5 {[%clk 0:03:00]}  d6 {[%clk 0:02:53]} 9. Nfxd4 {[%clk 0:02:58]}  Nxd4 {[%clk 0:02:47]} 10. Nxd4 {[%clk 0:02:59]}  O-O {[%clk 0:02:46]} 11. Be3 {[%clk 0:02:49]}  d5 {[%clk 0:02:41]} 12. Rc1 {[%clk 0:02:05]}  e5 {[%clk 0:02:41]} 13. Nb3 {[%clk 0:02:04]}  d4 {[%clk 0:02:41]} 14. Bd2 {[%clk 0:02:05]}  Nc6 {[%clk 0:02:40]} 15. e3 {[%clk 0:02:02]}  Bf5 {[%clk 0:02:01]} 16. exd4 {[%clk 0:02:02]}  exd4 {[%clk 0:02:02]} 17. Re1 {[%clk 0:02:03]}  Qb6 {[%clk 0:01:54]} 18. h3 {[%clk 0:01:58]}  Rae8 {[%clk 0:01:50]} 19. g4 {[%clk 0:01:58]}  Rxe1+ {[%clk 0:01:38]} 20. Qxe1 {[%clk 0:01:59]}  Be6 {[%clk 0:01:39]} 21. Ba5 {[%clk 0:01:58]}  Qa6 {[%clk 0:01:20]} 22. Bc7 {[%clk 0:01:52]}  Qxa2 {[%clk 0:00:40]} 23. Nc5 {[%clk 0:01:52]}  Bc8 {[%clk 0:00:38]} 24. Bd6 {[%clk 0:01:46]}  Rd8 {[%clk 0:00:35]} 25. Bxc6 {[%clk 0:01:46]}  Rxd6 {[%clk 0:00:14]} 26. Qe8+ {[%clk 0:01:45]}  Bf8 {[%clk 0:00:14]} 27. Bd5 {[%clk 0:01:39]}  Rxd5 {[%clk 0:00:04]} 28. cxd5 {[%clk 0:01:40]}  Qxb2 {[%clk 0:00:04]} 29. Nd3 {[%clk 0:01:39]} 1-0


[Site "https://www.chess.com"]